bitfinex/quotes_ETHUSD_20230109
["timestamp","ask_amount","ask_price","bid_price","bid_amount"]
[1673285604893,29.79864064,1340.8,1340.5,7.58569789]
[1673285605456,29.79864064,1340.8,1340.5,0.12587789]
[1673285605749,3.6256,1340.8,1340.5,16.29840789]
[1673285605921,0.6255,1340.9,1340.7,1.329]
[1673285606130,8.01742,1340.9,1340.8,2.65]
[1673285606386,15.54152,1340.9,1340.8,2.65]
[1673285606751,15.54152,1340.9,1340.8,1.321]
[1673285607109,0.6255,1340.9,1340.8,1.321]
[1673285607278,7.45767,1340.9,1340.8,1.8097]
[1673285607489,0.066,1340.9,1340.8,1.8097]
[1673285607717,9.1921679,1341.0,1340.8,1.8097]
[1673285607936,12.98982854,1341.0,1340.8,1.8097]
[1673285608357,29.57083932,1341.0,1340.7,0.066]
[1673285608561,22.11361932,1341.0,1340.7,1.329]
[1673285608773,10.85883868,1341.0,1340.7,8.78772]
[1673285608962,1.7349479,1341.0,1340.7,16.31251]
[1673285609177,4.6689479,1341.0,1340.7,16.31251]
[1673285609400,19.5832079,1341.0,1340.7,8.85372]
[1673285609636,21.31597868,1341.0,1340.7,8.85372]
[1673285610218,1.1094479,1340.9,1340.7,8.85372]
[1673285610668,6.40171868,1341.0,1340.7,16.31251]
[1673285610885,6.40171868,1341.0,1340.7,8.85372]
[1673285611218,13.85883868,1341.0,1340.7,10.616685]
[1673285611800,13.85883868,1341.0,1340.7,18.075475]
[1673285612158,13.85883868,1341.0,1340.7,10.616685]
[1673285612376,13.85883868,1341.0,1340.8,1.549]
[1673285612377,2.84221868,1341.0,1340.8,1.549]
[1673285612694,1.1094479,1341.0,1340.9,8.77467]
[1673285612851,1.1094479,1341.0,1340.9,13.39697128]
[1673285613065,1.1094479,1341.0,1340.9,5.93930128]
[1673285613274,1.1094479,1341.0,1340.9,13.39697128]
[1673285613525,1.1094479,1341.0,1340.9,5.93930128]
[1673285613735,1.1094479,1341.0,1340.9,2.43930128]
[1673285614053,1.1094479,1341.0,1340.9,1.317]
[1673285614214,1.1094479,1341.0,1340.9,4.817]
[1673285614862,1.1094479,1341.0,1340.9,1.317]
[1673285615080,2.77621868,1341.0,1340.9,4.817]
[1673285615305,1.1094479,1341.0,1340.9,21.05834]
[1673285615495,1.1094479,1341.0,1340.9,28.58201]
[1673285616755,1.1094479,1341.0,1340.9,25.08201]
[1673285616963,1.1094479,1341.0,1340.9,2.709]
[1673285617279,1.1094479,1341.0,1340.9,8.78367]
[1673285617280,2.77621868,1341.0,1340.9,8.78367]
[1673285617490,3.88913182,1341.0,1340.9,8.84967]
[1673285617698,3.88913182,1341.0,1340.9,1.392]
[1673285617909,3.88913182,1341.0,1340.9,1.326]
[1673285618154,3.88913182,1341.0,1340.8,16.30088]
[1673285618329,1.11373681,1340.9,1340.8,23.75888]
[1673285618883,1.11373681,1340.9,1340.8,16.30088]
[1673285619380,1.11373681,1340.9,1340.8,1.385]
[1673285619381,1.66677078,1340.9,1340.8,1.385]
[1673285619573,3.88913182,1340.9,1340.8,1.319]
[1673285619785,3.88913182,1340.9,1340.8,16.23546]
[1673285620104,1.66677078,1340.9,1340.8,16.30146]
[1673285620323,1.66677078,1340.9,1340.8,0.066]
[1673285620324,11.35188731,1340.9,1340.8,0.066]
[1673285620674,11.72215675,1340.9,1340.6,1.383]
[1673285620834,1.11473793,1340.7,1340.6,1.317]
[1673285621044,2.78684483,1340.7,1340.6,1.317]
[1673285621251,2.78684483,1340.7,1340.6,8.77634]
[1673285621465,2.78684483,1340.7,1340.6,8.84234]
[1673285623353,2.78684483,1340.7,1340.6,16.30168]
[1673285623568,1.6721069,1340.7,1340.6,16.30168]
[1673285624430,1.6721069,1340.7,1340.6,8.84234]
[1673285624847,3.90158277,1340.7,1340.6,7.52534]
[1673285625247,3.90158277,1340.7,1340.6,0.066]
[1673285625248,3.45250471,1340.7,1340.6,0.066]
[1673285625460,5.68198058,1340.7,1340.5,23.50276789]
[1673285625674,1.67330084,1340.6,1340.5,16.36409789]
[1673285625996,1.67330084,1340.6,1340.5,16.36430789]
[1673285626241,2.78900476,1340.6,1340.5,16.36430789]
[1673285626445,1.11570392,1340.6,1340.5,23.82420789]
[1673285626772,2.78900476,1340.6,1340.5,23.82420789]
[1673285626942,2.29547587,1340.7,1340.5,28.65320789]
[1673285626943,2.85500476,1340.7,1340.5,28.65320789]
[1673285627139,2.78900476,1340.7,1340.5,27.32420789]
[1673285627351,2.78900476,1340.7,1340.5,23.82420789]
[1673285627560,1.11570392,1340.6,1340.5,23.82420789]
[1673285627821,2.78900476,1340.7,1340.5,23.82420789]
[1673285628354,1.11570392,1340.6,1340.5,23.82420789]
[1673285629607,2.78900476,1340.6,1340.5,23.82420789]
[1673285630501,1.11570392,1340.6,1340.5,23.82420789]
[1673285630719,2.78900476,1340.6,1340.5,23.82420789]
[1673285631878,2.78900476,1340.6,1340.5,7.58540789]
[1673285632077,3.90277671,1340.6,1340.5,7.58577789]
[1673285632292,1.67330084,1340.6,1340.5,22.50259185]
[1673285632743,3.90638027,1340.6,1340.5,22.50259185]
[1673285632970,2.78984111,1340.6,1340.5,22.50259185]
[1673285633132,3.90637886,1340.6,1340.5,22.50259185]
[1673285633342,2.78984111,1340.6,1340.5,22.50259185]
[1673285636015,3.9066483,1340.6,1340.5,22.50259185]
[1673285638854,2.23334746,1340.6,1340.5,22.50259185]
[1673285639230,3.9066483,1340.6,1340.5,22.50259185]
[1673285640805,2.23334746,1340.6,1340.5,22.50259185]
[1673285641701,3.9066483,1340.6,1340.5,22.50259185]
[1673285642554,3.9066483,1340.6,1340.5,22.73259185]
[1673285644482,2.78984111,1340.6,1340.5,7.58279185]
[1673285644741,2.78984111,1340.6,1340.5,0.12289185]
[1673285644954,3.90724913,1340.6,1340.5,14.97669185]
[1673285645111,3.90724913,1340.6,1340.5,0.12289185]
[1673285645318,3.90724913,1340.6,1340.5,7.51679185]
[1673285645319,2.78984111,1340.6,1340.5,7.51679185]
[1673285645532,2.78984111,1340.6,1340.5,15.04269185]
[1673285645754,5.01931698,1340.6,1340.5,15.04269185]
[1673285645994,5.08531698,1340.6,1340.5,15.04269185]
[1673285646429,3.41201614,1340.6,1340.5,0.12289185]
[1673285646746,3.34601614,1340.6,1340.5,14.97669185]
[1673285646900,3.34601614,1340.6,1340.5,7.58279185]
[1673285647109,3.34601614,1340.6,1340.5,0.12289185]
[1673285647368,3.34601614,1340.6,1340.5,7.51679185]
[1673285647529,3.34601614,1340.6,1340.5,0.12289185]
[1673285647739,3.34601614,1340.6,1340.5,0.05689185]
[1673285648399,6.12396744,1340.6,1340.5,7.51679185]
[1673285648612,6.18996744,1340.6,1340.5,7.58279185]
[1673285648889,6.18996744,1340.6,1340.5,0.12289185]
[1673285649043,6.18996744,1340.6,1340.5,0.05689185]
[1673285650574,3.41201614,1340.6,1340.5,7.51679185]
[1673285650836,3.34601614,1340.6,1340.5,7.58279185]
[1673285651436,3.34601614,1340.6,1340.5,0.12289185]
[1673285651639,3.34601614,1340.6,1340.5,0.05689185]
[1673285652274,26.28806832,1340.6,1340.5,0.05689185]
[1673285652594,19.44429715,1340.6,1340.5,0.05689185]
[1673285652939,4.5348763,1340.6,1340.5,0.05689185]
[1673285653118,11.9282163,1340.6,1340.5,0.05689185]
[1673285653326,11.99423923,1340.6,1340.5,0.05689185]
[1673285653547,17.15243247,1340.6,1340.5,0.05689185]
[1673285653897,21.52272941,1340.6,1340.5,0.05689185]
[1673285654691,7.26114712,1340.6,1340.5,7.51679185]
[1673285654901,7.26114165,1340.6,1340.5,7.58279185]
[1673285655132,7.26110108,1340.6,1340.5,7.58279185]
[1673285655456,4.46794515,1340.6,1340.5,22.50010211]
[1673285655671,4.40194515,1340.6,1340.5,22.50010211]
[1673285656253,4.40194515,1340.6,1340.5,7.58030211]
[1673285656460,4.40194515,1340.6,1340.5,15.04020211]
[1673285656674,4.40194515,1340.6,1340.5,7.58030211]
[1673285658351,4.40194515,1340.6,1340.5,22.50010211]
[1673285659296,4.40194515,1340.6,1340.5,7.58030211]
[1673285659509,3.84234515,1340.6,1340.5,15.04020211]
[1673285659761,3.84234515,1340.6,1340.5,7.58030211]
[1673285659931,6.63550108,1340.6,1340.5,0.12040211]
[1673285660140,6.70150108,1340.6,1340.5,7.51430211]
[1673285660352,6.70150108,1340.6,1340.5,7.58030211]
[1673285660578,6.70150108,1340.6,1340.5,0.12040211]
[1673285660773,6.70150108,1340.6,1340.5,7.51430211]
[1673285661008,6.70150108,1340.6,1340.5,7.58030211]
[1673285661423,6.70150108,1340.6,1340.5,0.12040211]
[1673285661619,6.70150108,1340.6,1340.5,7.51430211]
[1673285661864,6.70150108,1340.6,1340.5,7.58030211]
[1673285662184,6.70150108,1340.6,1340.5,0.12040211]
[1673285662356,6.70150108,1340.6,1340.5,0.05440211]
[1673285662573,4.4673084,1340.6,1340.5,7.51430211]
[1673285662780,4.4013084,1340.6,1340.5,7.58030211]
[1673285663518,4.4013084,1340.6,1340.5,0.12040211]
[1673285663768,4.4013084,1340.6,1340.5,0.05440211]
[1673285663937,11.479276,1340.6,1340.5,0.05440211]
[1673285664146,11.545276,1340.6,1340.5,0.05440211]
[1673285664554,19.004616,1340.6,1340.5,0.05440211]
[1673285664764,11.545276,1340.6,1340.5,0.05440211]
[1673285665391,14.88835288,1340.6,1340.5,0.05440211]
[1673285666125,22.34769288,1340.6,1340.5,0.05440211]
[1673285667405,14.88835288,1340.6,1340.5,0.05440211]
[1673285668338,26.463956,1340.6,1340.5,0.05440211]
[1673285668542,29.81685093,1340.6,1340.5,0.05440211]
[1673285669015,26.463956,1340.6,1340.5,0.04638989]
[1673285669222,30.82121664,1340.6,1340.5,0.04638989]
[1673285669393,34.72388986,1340.6,1340.5,0.04638989]
[1673285669809,30.82121664,1340.6,1340.5,0.04638989]
[1673285670379,12.104876,1340.6,1340.5,0.04638989]
[1673285670594,5.58645219,1340.6,1340.5,0.04638989]
[1673285670901,2.23375247,1340.6,1340.5,0.01677989]
[1673285671067,2.16775247,1340.6,1340.5,0.01677989]
[1673285672427,4.96113483,1340.6,1340.5,0.01677989]
[1673285672958,4.96116705,1340.6,1340.5,0.01677989]
[1673285673165,2.16775247,1340.6,1340.5,0.01677989]
[1673285673584,9.62709247,1340.6,1340.5,0.01677989]
[1673285673794,9.69309247,1340.6,1340.5,0.01677989]
[1673285674002,12.48651659,1340.6,1340.5,0.01677989]
[1673285674474,19.94585659,1340.6,1340.5,0.01677989]
[1673285674845,9.69309247,1340.6,1340.5,0.01677989]
[1673285675160,12.48637402,1340.6,1340.5,0.01677989]
[1673285675371,11.92677402,1340.6,1340.5,0.01677989]
[1673285676876,12.48619219,1340.6,1340.5,0.01677989]
[1673285677208,20.89370169,1340.6,1340.5,0.01677989]
[1673285677519,31.70574141,1340.6,1340.5,0.01677989]
[1673285680004,32.26534141,1340.6,1340.5,0.01677989]
[1673285680211,28.91264169,1340.6,1340.5,0.01431018]
[1673285680575,32.26547566,1340.6,1340.5,0.01431018]
[1673285681789,32.26545733,1340.6,1340.5,0.01431018]
[1673285682127,28.91264169,1340.6,1340.5,0.01431018]
[1673285683610,32.81531491,1340.6,1340.5,0.01431018]
[1673285684018,36.62249145,1340.6,1340.5,0.01431018]
[1673285684321,37.95149145,1340.6,1340.5,0.01431018]
[1673285684583,37.95149145,1340.6,1340.5,0.00732086]
[1673285684747,37.04881823,1340.6,1340.5,0.00732086]
[1673285685849,40.95870632,1340.6,1340.5,0.00732086]
[1673285686052,40.95871154,1340.6,1340.5,0.00732086]
[1673285686457,37.04881823,1340.6,1340.5,0.00732086]
[1673285686641,45.40930982,1340.6,1340.5,8.6e-07]
[1673285687006,45.40930982,1340.6,1340.1,12.20857204]
[1673285687007,3.5,1340.5,1340.1,12.20857204]
[1673285687168,2.23432236,1340.2,1340.1,4.20677204]
[1673285687381,5.02722531,1340.2,1340.1,4.14077204]
[1673285687592,25.24361295,1340.2,1340.1,4.14077204]
[1673285687798,25.24359163,1340.2,1340.1,4.14077204]
[1673285689699,27.47523139,1340.2,1340.1,4.14077204]
[1673285689909,29.45435158,1340.2,1340.1,4.14077204]
[1673285690670,24.68234976,1340.2,1340.1,4.14077204]
[1673285691781,26.3554937,1340.2,1340.1,4.14077204]
[1673285692858,24.12385394,1340.2,1340.1,4.14077204]
[1673285695047,26.3554937,1340.2,1340.1,4.14077204]
[1673285696145,24.12385394,1340.2,1340.1,4.14077204]
[1673285696355,26.3554937,1340.2,1340.1,4.14077204]
[1673285696975,24.12385394,1340.2,1340.1,4.14077204]
[1673285697156,26.3554937,1340.2,1340.1,4.14077204]
[1673285697570,30.07336382,1340.2,1340.1,4.14077204]
[1673285697826,28.40021988,1340.2,1340.1,4.14077204]
[1673285698362,28.40021988,1340.2,1340.1,3.43244854]
[1673285698363,26.16858012,1340.2,1340.1,3.43244854]
[1673285698499,29.52006366,1340.2,1340.1,3.43244854]
[1673285699180,33.3177243,1340.2,1340.1,3.43244854]
[1673285700369,29.96624076,1340.2,1340.1,3.43244854]
[1673285700906,36.3177243,1340.2,1340.1,3.43244854]
[1673285701058,36.3177243,1340.2,1339.9,0.11958176]
[1673285701059,1.00908428,1340.0,1339.9,0.11958176]
[1673285701276,43.65518994,1340.0,1339.9,0.11958176]
[1673285701578,44.28108994,1340.0,1339.9,0.11958176]
[1673285701846,52.14268994,1340.0,1339.9,0.11958176]
[1673285702055,44.68000994,1340.0,1339.9,0.11958176]
[1673285702369,42.42099252,1340.0,1339.9,0.11958176]
[1673285702742,45.76371754,1340.0,1339.9,0.11958176]
[1673285702983,42.42099252,1340.0,1339.9,0.11958176]
[1673285703526,43.87978506,1340.0,1339.9,0.11958176]
[1673285703688,46.10612447,1340.0,1339.9,0.11958176]
[1673285704553,36.89586525,1340.0,1339.9,0.11958176]
[1673285704882,29.43318525,1340.0,1339.9,0.11958176]
[1673285705106,36.89586525,1340.0,1339.9,0.11958176]
[1673285705264,26.64839271,1340.0,1339.9,0.11958176]
[1673285705477,11.32411271,1340.0,1339.9,0.11958176]
[1673285705817,4.96999435,1340.0,1339.9,7.58282176]
[1673285706035,2.67754592,1340.0,1339.9,1.69656996]
[1673285706233,3.78994808,1340.0,1339.9,1.63056996]
[1673285706418,3.78982104,1340.0,1339.9,9.09380996]
[1673285706632,3.78982104,1340.0,1339.9,9.15980996]
[1673285706840,4.90399435,1340.0,1339.9,9.15980996]
[1673285707035,3.23553271,1340.0,1339.9,1.69656996]
[1673285707259,3.78923763,1340.0,1339.9,0.34958176]
[1673285707522,3.78923529,1340.0,1339.9,3.84958176]
[1673285707699,3.78923529,1340.0,1339.9,11.31282176]
[1673285707887,3.78923529,1340.0,1339.9,12.70782176]
[1673285708098,2.12115776,1340.0,1339.9,27.63430176]
[1673285708743,2.12115776,1340.0,1339.9,20.17106176]
[1673285708995,1.00908428,1340.0,1339.9,20.17106176]
[1673285709142,1.00908428,1340.0,1339.9,35.7609624]
[1673285717289,1.00908428,1340.0,1339.9,13.3712424]
[1673285717450,1.00908428,1340.0,1339.9,35.7609624]
[1673285717643,1.00908428,1340.0,1339.9,28.2977224]
[1673285717854,1.00908428,1340.0,1339.9,20.8344824]
[1673285718064,1.00908428,1340.0,1339.9,13.3712424]
[1673285718537,1.00908428,1340.0,1339.9,35.7609624]
[1673285723158,3.96052596,1340.2,1339.9,35.7609624]
[1673285723159,2.84615101,1340.2,1339.9,35.7609624]
[1673285723366,1.11207348,1340.2,1340.1,1.323]
[1673285723583,2.78015101,1340.2,1340.1,27.73702064]
[1673285723754,2.78015101,1340.2,1340.1,32.13202064]
[1673285724388,3.89452596,1340.2,1340.1,32.13202064]
[1673285724606,1.66807753,1340.2,1340.1,32.13202064]
[1673285725131,3.89452596,1340.2,1340.1,32.13202064]
[1673285725314,1.66807753,1340.2,1340.1,32.13202064]
[1673285725519,3.89452596,1340.2,1340.1,32.13202064]
[1673285725732,3.89461107,1340.2,1340.1,32.13202064]
[1673285726816,3.89461107,1340.2,1340.1,30.80902064]
[1673285728355,2.77972835,1340.2,1340.1,30.80902064]
[1673285728606,2.77992121,1340.2,1340.1,30.80902064]
[1673285732291,2.77992121,1340.2,1340.1,29.48002064]
[1673285733089,1.11175857,1340.2,1340.1,29.48002064]
[1673285733300,2.77992121,1340.2,1340.1,29.48002064]
[1673285733551,1.11175857,1340.2,1340.1,29.48002064]
[1673285735236,5.07236964,1340.3,1340.1,30.79902064]
[1673285735542,1.17775857,1340.3,1340.2,30.73537064]
[1673285735777,1.11175857,1340.3,1340.2,30.80137064]
[1673285735982,2.77992121,1340.3,1340.2,30.80137064]
[1673285736130,1.11175857,1340.3,1340.2,30.80137064]
[1673285738553,2.77992121,1340.3,1340.2,30.80137064]
[1673285739865,1.11175857,1340.3,1340.2,30.80137064]
[1673285741330,1.11175857,1340.3,1340.2,44.80137064]
[1673285742446,1.11175857,1340.3,1340.2,22.41666064]
[1673285742800,2.77992121,1340.3,1340.2,44.80137064]
[1673285743417,1.66816264,1340.3,1340.2,43.47837064]
[1673285743603,3.89461107,1340.3,1340.2,43.47837064]
[1673285743827,13.14679133,1340.3,1340.2,0.066]
[1673285744017,13.14679133,1340.3,1340.1,3.0]
[1673285744018,3.5253329,1340.3,1340.1,3.0]
[1673285744232,5.02033265,1340.2,1340.1,3.0]
[1673285744445,5.08633265,1340.2,1340.1,3.0]
[1673285744662,5.08633265,1340.2,1340.0,3.066]
[1673285744899,2.78189684,1340.1,1340.0,3.0]
[1673285745106,1.6711381,1340.1,1340.0,3.0]
[1673285745316,2.90157129,1340.1,1339.9,0.18558176]
[1673285745511,1.67000846,1340.0,1339.9,0.11958176]
[1673285745960,3.89603267,1340.0,1339.9,0.11958176]
[1673285746472,5.01281675,1340.0,1339.9,0.11958176]
[1673285746648,5.07681675,1340.0,1339.9,0.11958176]
[1673285746863,3.74557459,1340.0,1339.9,0.11958176]
[1673285747124,2.22602421,1340.0,1339.9,0.11958176]
[1673285747399,5.01081675,1340.0,1339.9,0.11958176]
[1673285747610,2.29202421,1340.0,1339.9,0.11958176]
[1673285747838,2.22602421,1340.0,1339.9,0.11958176]
[1673285748858,2.23554011,1340.0,1339.9,0.11958176]
[1673285749073,3.89616599,1340.0,1339.9,0.11958176]
[1673285749399,3.89616599,1340.0,1339.9,15.04606176]
[1673285749624,1.67014178,1340.0,1339.9,15.35704027]
[1673285749812,1.67014178,1340.0,1339.9,22.82028027]
[1673285750537,3.89616599,1340.0,1339.9,15.35704027]
[1673285750740,2.22602421,1340.0,1339.9,15.35704027]
[1673285750955,3.89662105,1340.0,1339.9,15.35704027]
[1673285753679,2.22602421,1340.0,1339.9,15.35704027]
[1673285753888,3.89621153,1340.0,1339.9,15.35704027]
[1673285754884,2.22602421,1340.0,1339.9,7.89380027]
[1673285755198,3.89609906,1340.0,1339.9,15.35704027]
[1673285755728,3.89609906,1340.0,1339.9,22.82028027]
[1673285755900,1.67007485,1340.0,1339.9,15.35704027]
[1673285756108,1.67007485,1340.0,1339.9,22.82028027]
[1673285756474,2.78337019,1340.0,1339.9,26.61794091]
[1673285756618,3.89609906,1340.0,1339.9,11.69146091]
[1673285756833,1.67007485,1340.0,1339.9,15.35320599]
[1673285757282,1.67007485,1340.0,1339.9,7.88996599]
[1673285757836,5.01081675,1340.0,1339.9,0.18174748]
[1673285757988,7.08030153,1340.0,1339.9,0.11574748]
[1673285758517,4.8544817,1340.0,1339.9,0.11574748]
[1673285758725,4.7884817,1340.0,1339.9,0.11574748]
[1673285759144,6.1174817,1340.0,1339.9,0.11574748]
[1673285759408,6.1834817,1340.0,1339.9,0.11574748]
[1673285759774,7.73368996,1340.0,1339.9,0.11574748]
[1673285759980,5.07568996,1340.0,1339.9,0.11574748]
[1673285760663,5.63558996,1340.0,1339.9,0.11574748]
[1673285761500,4.5193265,1340.0,1339.9,0.11574748]
[1673285761663,3.34078538,1340.0,1339.9,22.50546748]
[1673285761879,3.34078538,1340.0,1339.9,22.57146748]
[1673285762274,2.78088538,1340.0,1339.9,22.57146748]
[1673285762396,1.1123563,1340.0,1339.9,22.80146748]
[1673285762612,1.1123563,1340.1,1339.9,40.59912812]
[1673285762852,1.1123563,1340.1,1340.0,22.61804]
[1673285763049,1.1123563,1340.1,1340.0,22.68404]
[1673285764309,1.1123563,1340.1,1340.0,26.48170064]
[1673285764553,1.1783563,1340.2,1340.0,26.48170064]
[1673285764712,1.1783563,1340.2,1340.1,26.18402064]
[1673285764713,2.78088538,1340.2,1340.1,26.18402064]
[1673285764925,2.78088538,1340.2,1340.1,26.48002064]
[1673285766289,1.1123563,1340.2,1340.1,26.48002064]
[1673285767609,2.78088538,1340.3,1340.1,27.80302064]
[1673285767920,2.78088538,1340.3,1340.2,26.41237064]
[1673285768093,2.78088538,1340.3,1340.2,26.47837064]
[1673285769459,2.83088538,1340.3,1340.2,26.47837064]
[1673285769849,2.78088538,1340.3,1340.2,26.47837064]
[1673285770196,3.8934265,1340.3,1340.2,26.47837064]
[1673285770854,3.89492442,1340.3,1340.2,19.01680064]
[1673285771017,2.22489742,1340.3,1340.2,19.01680064]
[1673285771859,2.22489742,1340.3,1340.2,26.47837064]
[1673285772325,5.00968996,1340.3,1340.2,19.01680064]
[1673285772516,5.07568996,1340.3,1340.2,15.21914]
[1673285773123,5.07568996,1340.3,1340.2,22.68071]
[1673285774106,5.64068185,1340.3,1340.2,0.066]
[1673285774313,3.41433154,1340.3,1340.1,14.98953]
[1673285774529,3.89617895,1340.2,1340.1,14.98953]
[1673285774702,3.89617895,1340.2,1340.1,7.52761]
[1673285774914,5.01118051,1340.2,1340.1,14.98973]
[1673285775169,5.01118051,1340.2,1340.1,0.066]
[1673285775170,5.64130313,1340.2,1340.1,0.066]
[1673285775379,3.41486449,1340.2,1340.0,7.46229]
[1673285775589,3.34886449,1340.2,1340.1,14.92424]
[1673285775914,3.34886449,1340.2,1340.1,7.52812]
[1673285776279,3.34886449,1340.2,1340.1,14.99024]
[1673285776488,3.34886449,1340.2,1340.1,7.52812]
[1673285777166,3.34886449,1340.2,1340.1,14.99024]
[1673285777407,3.34886449,1340.2,1340.1,7.52812]
[1673285777592,1.12387195,1340.2,1340.1,0.066]
[1673285777905,2.587,1340.0,1339.9,7.64444748]
[1673285778099,5.3702662,1340.0,1339.9,15.10724748]
[1673285778311,5.4362662,1340.0,1339.9,22.57048748]
[1673285778699,4.32295972,1340.0,1339.9,22.57048748]
[1673285778907,1.66995972,1340.0,1339.9,22.57048748]
[1673285780307,2.78354827,1340.0,1339.9,22.57048748]
[1673285780733,2.78354351,1340.0,1339.9,22.57048748]
[1673285781265,1.66995972,1340.0,1339.9,22.57048748]
[1673285781582,2.78375736,1340.0,1339.9,22.57048748]
[1673285781800,1.11379764,1340.0,1339.9,22.57048748]
[1673285782007,7.64e-06,1340.0,1339.9,22.57048748]
[1673285782177,4.52237268,1340.2,1339.9,22.57048748]
[1673285782396,2.22975972,1340.2,1339.9,22.57048748]
[1673285782897,1.66995972,1340.1,1339.9,22.57048748]
[1673285783582,1.66995972,1340.1,1339.9,26.36814812]
[1673285783739,4.52237268,1340.2,1339.9,26.36814812]
[1673285783950,2.22975972,1340.2,1339.9,26.36814812]
[1673285784370,1.66995972,1340.2,1339.9,40.36814812]
[1673285784621,1.66995972,1340.2,1340.0,3.5]
[1673285784798,1.66995972,1340.2,1340.1,22.38636]
[1673285785013,4.52237268,1340.3,1340.1,22.45236]
[1673285785219,4.45637268,1340.3,1340.1,22.45236]
[1673285785972,4.45637268,1340.3,1340.1,22.46662491]
[1673285786574,1.66995972,1340.2,1340.1,22.46662491]
[1673285787147,4.52237268,1340.3,1340.1,22.46662491]
[1673285787486,3.89657268,1340.3,1340.1,22.46662491]
[1673285787684,1.66995972,1340.2,1340.1,22.46662491]
[1673285787894,1.73595972,1340.3,1340.1,22.46662491]
[1673285788198,1.66995972,1340.3,1340.1,25.96662491]
[1673285788360,1.66995972,1340.3,1340.1,29.76428555]
[1673285788780,4.52227268,1340.4,1340.1,29.76428555]
[1673285788990,4.45627268,1340.4,1340.1,29.76428555]
[1673285789448,4.45627268,1340.4,1340.1,26.26428555]
[1673285789640,1.66995972,1340.3,1340.1,26.26428555]
[1673285789862,4.52227268,1340.4,1340.1,26.26428555]
[1673285790055,0.05,1340.2,1340.1,26.26428555]
[1673285790271,4.45627268,1340.4,1340.1,26.49428555]
[1673285790896,1.66995972,1340.3,1340.1,26.49428555]
[1673285792095,2.78496225,1340.3,1340.1,26.49428555]
[1673285793035,1.11500253,1340.2,1340.1,26.49428555]
[1673285793678,2.78496225,1340.3,1340.1,26.49428555]
[1673285795221,2.78496225,1340.2,1340.1,22.46662491]
[1673285795396,1.11500253,1340.2,1340.1,22.46662491]
[1673285797127,2.78496225,1340.2,1340.1,22.46662491]
[1673285797309,1.11500253,1340.2,1340.1,22.45236]
[1673285797517,3.50011724,1340.2,1340.1,0.066]
[1673285797705,6.2865302,1340.2,1340.0,7.52813]
[1673285797921,1.11518044,1340.1,1340.0,7.52813]
[1673285798130,1.11518044,1340.1,1340.0,14.99059]
[1673285798596,1.11518044,1340.1,1340.0,22.45327]
[1673285799186,2.78514016,1340.1,1340.0,22.45327]
[1673285801302,1.11518044,1340.1,1340.0,22.45327]
[1673285801514,2.78514016,1340.1,1340.0,22.45327]
[1673285801955,1.11518044,1340.1,1340.0,22.45327]
[1673285802343,2.78514016,1340.1,1340.0,22.45327]
[1673285803017,1.66995972,1340.1,1340.0,22.45327]
[1673285803181,3.14018523,1340.1,1340.0,14.99059]
[1673285803395,5.02576479,1340.1,1340.0,0.066]
[1673285803654,5.02576479,1340.1,1339.9,7.57888748]
[1673285803655,5.09176479,1340.1,1339.9,7.57888748]
[1673285803829,5.09176479,1340.1,1339.9,7.64488748]
[1673285803830,3.00283612,1340.0,1339.9,7.64488748]
[1673285804020,3.00283612,1340.0,1339.9,15.10786748]
[1673285804277,3.00283612,1340.0,1339.9,7.64472748]
[1673285804594,3.90258077,1340.0,1339.9,7.64472748]
[1673285804999,3.90258077,1340.0,1339.9,15.10796748]
[1673285805221,4.11867263,1340.0,1339.9,15.10796748]
[1673285805396,4.11867263,1340.0,1339.9,22.57120748]
[1673285805858,2.78967263,1340.0,1339.9,22.56844343]
[1673285806606,1.11583651,1340.0,1339.9,22.56844343]
[1673285808055,2.85567263,1340.1,1339.9,36.56844343]
[1673285808263,2.23184558,1340.2,1339.9,43.14385888]
[1673285808264,1.18183651,1340.2,1339.9,43.14385888]
[1673285808585,1.11583651,1340.2,1340.1,29.84848]
[1673285808768,1.11583651,1340.2,1340.1,29.91448]
[1673285811129,1.11583651,1340.2,1340.1,22.45236]
[1673285811285,1.67383612,1340.2,1340.1,7.52812]
[1673285811602,1.67383612,1340.2,1340.1,0.066]
[1673285811962,1.67383612,1340.2,1340.0,14.99093]
[1673285812142,1.11566623,1340.1,1340.0,14.99093]
[1673285812757,1.11566623,1340.1,1340.0,0.066]
[1673285812758,2.78950235,1340.1,1340.0,0.066]
[1673285812961,3.07505258,1340.1,1339.9,0.11298343]
[1673285813225,10.53717258,1340.1,1339.9,0.11298343]
[1673285813436,10.60317258,1340.1,1339.9,0.11298343]
[1673285813603,1.11566623,1340.0,1339.9,0.11298343]
[1673285813814,10.60317258,1340.1,1339.9,0.11298343]
[1673285814024,1.11566623,1340.0,1339.9,0.11298343]
[1673285814524,4.57494138,1340.0,1339.9,0.11298343]
[1673285814805,11.63578696,1340.0,1339.9,0.11298343]
[1673285815174,15.66446696,1340.0,1339.9,0.11298343]
[1673285816572,8.20178696,1340.0,1339.9,0.11298343]
[1673285816912,15.66446696,1340.0,1339.9,0.11298343]
[1673285817127,8.20178696,1340.0,1339.9,0.11298343]
[1673285817489,8.20178696,1340.0,1339.9,7.57622343]
[1673285817490,7.08485149,1340.0,1339.9,7.57622343]
[1673285817737,7.08485149,1340.0,1339.9,7.64222343]
[1673285818120,7.08485149,1340.0,1339.9,0.17898343]
[1673285818331,7.08485149,1340.0,1339.9,0.11298343]
[1673285818655,8.20178696,1340.0,1339.9,0.11298343]
[1673285819435,5.96994138,1340.0,1339.9,0.11298343]
[1673285820047,15.66446696,1340.0,1339.9,0.11298343]
[1673285820378,23.12714696,1340.0,1339.9,0.11298343]
[1673285821201,21.45331084,1340.0,1339.9,0.11298343]
[1673285821422,13.99063084,1340.0,1339.9,0.11298343]
[1673285823002,24.23650336,1340.0,1339.9,0.11298343]
[1673285823191,15.66352325,1340.0,1339.9,0.11298343]
[1673285823807,23.12620325,1340.0,1339.9,0.11298343]
[1673285824016,30.58888325,1340.0,1339.9,0.11298343]
[1673285824259,28.91599084,1340.0,1339.9,0.11298343]
[1673285824468,21.45331084,1340.0,1339.9,0.11298343]
[1673285824637,13.99063084,1340.0,1339.9,0.11298343]
[1673285824854,6.52795084,1340.0,1339.9,0.11298343]
[1673285825378,9.31114336,1340.0,1339.9,0.11298343]
[1673285825594,7.07929778,1340.0,1339.9,0.11298343]
[1673285826259,9.30863455,1340.0,1339.9,0.11298343]
[1673285827085,9.30859886,1340.0,1339.9,7.5724331]
[1673285827294,9.30859886,1340.0,1339.9,0.1751931]
[1673285827533,9.30859886,1340.0,1339.9,0.1091931]
[1673285827894,14.54197778,1340.0,1339.9,0.1091931]
[1673285828111,6.72200387,1340.0,1339.9,0.1091931]
[1673285828322,2.29570609,1340.0,1339.9,0.1091931]
[1673285828576,2.22970609,1340.0,1339.9,0.1091931]
[1673285828791,5.01289861,1340.0,1339.9,0.1091931]